fUSD/lending_fUSD_20260427
["ID","MTS","AMOUNT","RATE_DAILY","PERIOD"]
[421233560,1777284583319,327.81219545,0.00032876,120]
[421233561,1777284583627,500.0,0.00032876,120]
[421233562,1777284583905,299.95953745,0.0001,2]
[421233563,1777284583977,500.0,0.00032876,120]
[421233564,1777284584077,500.0,0.00032876,120]
[421233565,1777284585382,192.17,0.00032603,120]
[421233566,1777284585869,626.19859066,0.00032876,120]
[421233567,1777284585904,500.0,0.00032876,120]
[421233568,1777284587690,14967.6,0.00032876,120]
[421233569,1777284588601,654.65,0.00032876,120]
[421233570,1777284589221,196.56171745,0.00032876,120]
[421233571,1777284591359,536.2015224,0.00032876,120]
[421233572,1777284591394,156.60513187,0.00032876,120]
[421233573,1777284591433,500.0,0.00032876,120]
[421233574,1777284591472,500.0,0.00032876,120]
[421233575,1777284591671,500.0,0.00032876,120]
[421233576,1777284592303,1068.19,0.00032876,120]
[421233577,1777284592839,852.24,0.00032876,120]
[421233578,1777284592882,500.0,0.00032876,120]
[421233579,1777284593813,500.0,0.00032876,120]
[421233580,1777284593956,500.0,0.00032876,120]
[421233581,1777284594203,1858.0,0.00032876,120]
[421233582,1777284594631,500.0,0.00032876,120]
[421233583,1777284595147,1111.37,0.00032876,120]
[421233584,1777284595742,647.04992914,0.00032876,120]
[421233585,1777284595888,541.94292453,0.00032876,120]
[421233586,1777284597198,500.0,0.00032876,120]
[421233587,1777284597300,500.0,0.00032876,120]
[421233588,1777284597594,453.93636034,0.00032876,120]
[421233589,1777284598930,500.0,0.00032876,120]
[421233590,1777284600429,401.99018263,0.00032876,120]
[421233591,1777284600486,563.92040273,0.00032876,120]
[421233592,1777284601861,220.4563293,0.00032876,120]
[421233593,1777284601943,500.0,0.00032876,120]
[421233594,1777284602032,594.91471636,0.00032876,120]
[421233595,1777284602146,500.0,0.00032876,120]
[421233596,1777284603546,500.0,0.00032876,120]
[421233597,1777284603613,311.38792755,0.00032876,120]
[421233598,1777284603886,500.0,0.00032876,120]
[421233599,1777284603931,256.70447543,0.00032876,120]
[421233600,1777284605427,306.00529377,0.00032876,120]
[421233601,1777284605817,500.0,0.00032876,120]
[421233602,1777284605885,761.08,0.00032876,120]
[421233603,1777284606803,500.0,0.00032876,120]
[421233604,1777284606847,858.76,0.00032876,120]
[421233605,1777284607394,500.0,0.00032876,120]
[421233606,1777284607732,747.23,0.00032876,120]
[421233607,1777284607912,500.0,0.00032876,120]
[421233608,1777284608162,500.0,0.00032876,120]
[421233609,1777284608423,500.0,0.00032876,120]
[421233610,1777284610514,323.50389272,0.00032876,120]
[421233611,1777284610608,642.80320362,0.00032876,120]
[421233612,1777284611034,500.0,0.00032876,120]
[421233613,1777284611730,500.0,0.00032876,120]
[421233614,1777284612700,500.0,0.00032876,120]
[421233615,1777284612761,500.0,0.00032876,120]
[421233616,1777284612823,604.92185871,0.00032876,120]
[421233617,1777284612889,500.0,0.00032876,120]
[421233618,1777284613405,500.0,0.00032876,120]
[421233619,1777284614211,251.4286544,0.00032876,120]
[421233620,1777284614744,688.45,0.00032876,120]
[421233621,1777284614936,500.0,0.00032876,120]
[421233622,1777284615840,254.26044448,0.00032876,120]
[421233623,1777284616134,500.0,0.00032876,120]
[421233624,1777284616890,1104.86,0.00032876,120]
[421233625,1777284617339,1076.37,0.00032876,120]
[421233626,1777284617797,244.24062454,0.00032876,120]
[421233627,1777284618508,500.0,0.00032876,120]
[421233628,1777284619126,1140.74,0.00032876,120]
[421233629,1777284619917,-2000.0,9.594e-05,2]
[421233630,1777284619947,-2124.7391,9.594e-05,2]
[421233631,1777284619977,-24741.0951,9.594e-05,2]
[421233632,1777284620008,-500.0,9.853e-05,2]
[421233633,1777284620037,-500.0,9.853e-05,2]
[421233634,1777284620067,-151.0,0.000101,2]
[421233635,1777284620098,-2000.0,0.000101,2]
[421233636,1777284620128,-242.0,0.00010131,5]
[421233637,1777284620158,-249.0,0.00010131,5]
[421233638,1777284620189,-153.0,0.00010131,5]
[421233639,1777284620219,-51848.48672609,0.00010165,2]
[421233640,1777284620248,-839.75384654,0.00010168,2]
[421233641,1777284620278,-2475.0,0.00010181,2]
[421233642,1777284620308,-626.0,0.000102,2]
[421233643,1777284620339,-2000.0,0.000103,2]
[421233644,1777284620369,-200.0,0.00010361,2]
[421233645,1777284620399,-158.0,0.000104,2]
[421233646,1777284620429,-158.0,0.000104,2]
[421233647,1777284620460,-200.0,0.00010465,2]
[421233648,1777284620490,-1455.25,0.00010468,2]
[421233649,1777284620520,-1056.49,0.00010468,2]
[421233650,1777284620550,-7515.43,0.00010468,2]
[421233651,1777284620579,-448.94,0.00010468,2]
[421233652,1777284620609,-312.19,0.00010468,2]
[421233653,1777284620639,-162.27045424,0.00010476,2]
[421233654,1777284620903,-207.31603756,0.00010476,2]
[421233655,1777284620933,-160.0,0.00010476,2]
[421233656,1777284620962,-297.35689822,0.00010486,2]
[421233657,1777284620992,-267.97207663,0.00010496,2]
[421233658,1777284621022,-1000.0,0.00010499,2]
[421233659,1777284621052,-1000.0,0.00010499,2]
[421233660,1777284621082,-1000.0,0.00010499,2]
[421233661,1777284621112,-1000.0,0.00010499,2]
[421233662,1777284621142,-1000.0,0.00010499,2]
[421233663,1777284621171,-1000.0,0.00010499,2]
[421233664,1777284621200,-1000.0,0.00010499,2]
[421233665,1777284621230,-1000.0,0.00010499,2]
[421233666,1777284621261,-1000.0,0.00010499,2]
[421233667,1777284621290,-1000.0,0.00010499,2]
[421233668,1777284621320,-1000.0,0.00010499,2]
[421233669,1777284621350,-1000.0,0.00010499,2]
[421233670,1777284621380,-1000.0,0.00010499,2]
[421233671,1777284621410,-1000.0,0.00010499,2]
[421233672,1777284621441,-1000.0,0.00010499,2]
[421233673,1777284621471,-1000.0,0.00010499,2]
[421233674,1777284621501,-1000.0,0.00010499,2]
[421233675,1777284621532,-1000.0,0.00010499,2]
[421233676,1777284621562,-360.83633539,0.00010499,2]
[421233677,1777284621592,-2000.0,0.000105,2]
[421233678,1777284621623,-628.52,0.00010574,2]
[421233679,1777284621653,-10521.6,0.00010574,2]
[421233680,1777284621684,-411.94,0.00010574,2]
[421233681,1777284621714,-150.0,0.00010645,2]
[421233682,1777284621743,-150.0,0.00010646,2]
[421233683,1777284621774,-160.948049,0.00010647,2]
[421233684,1777284621803,-500.0,0.00010673,2]
[421233685,1777284621833,-151946.43546303,0.000107,2]
[421233686,1777284621864,-374378.56837615,0.000107,2]
[421233687,1777284621894,-2000.0,0.000107,2]
[421233688,1777284621923,-2000.0,0.000109,2]
[421233689,1777284621953,-1906.63414084,0.000109,2]
[421233690,1777284621981,-350.0,0.00010916,2]
[421233691,1777284622011,-350.0,0.0001093,2]
[421233692,1777284622041,-350.0,0.00010944,2]
[421233693,1777284622074,-200.0,0.00010959,2]
[421233694,1777284622105,-200.0,0.00010959,2]
[421233695,1777284622137,-200.0,0.00010959,2]
[421233696,1777284622169,-200.0,0.00010959,2]
[421233697,1777284622200,-500.0,0.00010959,2]
[421233698,1777284622231,-1000.0,0.00010959,2]
[421233699,1777284622263,-220.59405561,0.00010959,2]
[421233700,1777284622294,-1000.0,0.00010959,2]
[421233701,1777284622325,-1000.0,0.00010959,2]
[421233702,1777284622356,-1000.0,0.00010959,2]
[421233703,1777284622388,-1000.0,0.00010959,2]
[421233704,1777284622420,-1000.0,0.00010959,2]
[421233705,1777284622452,-1000.0,0.00010959,2]
[421233706,1777284622485,-1000.0,0.00010959,2]
[421233707,1777284622516,-1000.0,0.00010959,2]
[421233708,1777284622548,-165.46,0.00010989,2]
[421233709,1777284622580,-512.61,0.00010989,2]
[421233710,1777284622627,-260.44,0.00010989,2]
[421233711,1777284622660,-904.7,0.00010989,2]
[421233712,1777284623002,-228.3,0.00010989,2]
[421233713,1777284623035,-354.45606255,0.00011,2]
[421233714,1777284623070,-158.0,0.00011,2]
[421233715,1777284623102,-158.0,0.00011,2]
[421233716,1777284623134,-158.0,0.00011,2]
[421233717,1777284623165,-2000.0,0.000111,2]
[421233718,1777284623197,-2500.0,0.0001111,2]
[421233719,1777284623230,-2500.0,0.0001111,2]
[421233720,1777284623262,-2500.0,0.0001111,2]
[421233721,1777284623294,-2500.0,0.0001111,2]
[421233722,1777284623325,-2574.4043734,0.0001111,2]
[421233723,1777284623362,-160.02,0.0001122,2]
[421233724,1777284623396,-228.99,0.0001122,2]
[421233725,1777284623429,-784.31,0.0001141,2]
[421233726,1777284623462,-150.0,0.00011412,2]
[421233727,1777284623495,-82348.6733787,0.00011438,2]
[421233728,1777284623528,-914.7766954,0.00011438,2]
[421233729,1777284623560,-250.0,0.000115,2]
[421233730,1777284623591,-250.0,0.000115,2]
[421233731,1777284623622,-150.0,0.00011546,2]
[421233732,1777284623653,-784.31,0.00011655,2]
[421233733,1777284623685,-10898.49510975,0.00011655,2]
[421233734,1777284623716,-1300.90280001,0.00011666,2]
[421233735,1777284623748,-500.0,0.0001172,2]
[421233736,1777284623780,-18374.472679,0.00011786,2]
[421233737,1777284623812,-204.1142705,0.00011786,2]
[421233738,1777284623849,-168.67,0.00011841,2]
[421233739,1777284623886,-500.0,0.000119,2]
[421233740,1777284623919,-784.31,0.000119,2]
[421233741,1777284623951,-10898.49510975,0.000119,2]
[421233742,1777284623981,-1044.0160041,0.000119,2]
[421233743,1777284624013,-3076.84928558,0.000119,2]
[421233744,1777284624045,-500.0,0.00011973,2]
[421233745,1777284624076,-1168518.85757196,0.00012,2]
[421233746,1777284624991,770.15,0.00032876,120]
[421233747,1777284625686,500.0,0.00032876,120]
[421233748,1777284625968,500.0,0.00032876,120]
[421233749,1777284626191,500.0,0.00032876,120]
[421233750,1777284626253,163.43664646,0.00032876,120]
[421233751,1777284626409,500.0,0.00032876,120]
[421233752,1777284626627,500.0,0.00032876,120]
[421233753,1777284626663,626.41634718,0.00032876,120]
[421233754,1777284626955,500.0,0.00032876,120]
[421233755,1777284627029,500.0,0.00032876,120]
[421233756,1777284627451,420.95873712,0.00032876,120]
[421233757,1777284627491,500.0,0.00032876,120]
[421233758,1777284627531,271.3478663,0.00032876,120]
[421233759,1777284627700,500.0,0.00032876,120]
[421233760,1777284627854,162.45039999,0.00032876,120]
[421233761,1777284627908,500.0,0.00032876,120]
[421233762,1777284628725,500.0,0.00032876,120]
[421233763,1777284628761,500.0,0.00032876,120]
[421233764,1777284629074,547.73,0.00032876,120]
[421233765,1777284629274,3543.63,0.00032876,120]
[421233766,1777284629655,597.5548025,0.00032876,120]
[421233767,1777284629858,500.0,0.00032876,120]
[421233768,1777284630483,500.0,0.00032876,120]
[421233769,1777284630968,1457.44,0.00032876,120]
[421233770,1777284631136,500.0,0.00032876,120]
[421233771,1777284631971,500.0,0.00032876,120]
[421233772,1777284632203,500.0,0.00032876,120]
[421233773,1777284632227,-503.70314734,9.594e-05,2]
[421233774,1777284632421,-1996.29685266,9.594e-05,2]
[421233775,1777284632430,-416.0,0.00010181,2]
[421233776,1777284632440,-500.0,0.00011999,2]
[421233777,1777284632449,-315.49640076,0.00011999,2]
[421233778,1777284632459,-500.0,0.00011999,2]
[421233779,1777284632468,-223.15009154,0.00011999,2]
[421233780,1777284632478,-220.6153953,0.00011999,2]
[421233781,1777284632488,-59.26638771,0.00011999,2]
[421233783,1777284632621,500.0,0.00032876,120]
[421233796,1777284632774,392.31958186,0.00032876,120]
[421233799,1777284633025,328.68714532,0.00032876,120]
[421233800,1777284634923,978.91,0.00032876,120]
[421233801,1777284635604,500.0,0.00032876,120]
[421233802,1777284635735,500.0,0.00032876,120]
[421233803,1777284636207,500.0,0.00032876,120]
[421233804,1777284636297,500.0,0.00032876,120]
[421233805,1777284636809,629.97310889,0.00032876,120]
[421233806,1777284636849,1760.72,0.00032876,120]
[421233807,1777284637529,500.0,0.00032876,120]
[421233809,1777284638014,500.0,0.00032876,120]
[421233812,1777284638341,500.0,0.00032876,120]
[421233813,1777284638555,500.0,0.00032876,120]
[421233814,1777284638612,-158.67151286,0.000119,2]
[421233815,1777284638622,-236.69218714,0.00011999,2]
[421233816,1777284638697,1353.27,0.00032876,120]
[421233817,1777284638819,1134.04,0.00032876,120]
[421233818,1777284639741,555.96908729,0.00032876,120]
[421233819,1777284639838,500.0,0.00032876,120]
[421233830,1777284640575,-204.04142515,0.00011999,2]
[421233831,1777284640585,-1211.37477974,0.00012,2]
[421233832,1777284640597,-2742.37269276,0.00012,2]
[421233833,1777284640950,611.76307982,0.00032876,120]
[421233834,1777284640994,-554.59764202,0.00012,2]
[421233835,1777284641005,-875.50000001,0.00012,2]
[421233836,1777284642508,500.0,0.00032876,120]
[421233840,1777284643123,500.0,0.00032876,120]
[421233842,1777284643273,-424228.94364559,0.00012,2]
[421233843,1777284643283,-399343.27804572,0.00012,2]
[421233844,1777284643292,-732561.97044591,0.00012,2]
[421233845,1777284643302,-3000.0,0.00012,2]
[421233846,1777284643312,-198.23793214,0.00012,2]
[421233847,1777284643321,-168.66,0.00012047,2]
[421233848,1777284643331,-500.0,0.00012767,2]
[421233849,1777284643340,-1350.0,0.00012871,2]
[421233850,1777284643350,-623.0,0.00012871,2]
[421233851,1777284643359,-250.0,0.00013,2]
[421233852,1777284643369,-2475.0,0.00013181,2]
[421233853,1777284643378,-416.0,0.00013181,2]
[421233854,1777284643387,-1906.63414083,0.00013185,2]
[421233855,1777284643396,-257.984039,0.00013425,2]
[421233856,1777284643405,-160.0,0.00013425,2]
[421233857,1777284643415,-745.68409,0.00013425,2]
[421233858,1777284643424,-1331.36818,0.00013425,2]
[421233859,1777284643434,-160.0,0.00013425,2]
[421233860,1777284643443,-543.476033,0.00013425,2]
[421233861,1777284643452,-160.0,0.00013425,2]
[421233862,1777284643462,-926.952067,0.00013425,2]
[421233863,1777284643472,-470.35544,0.00013425,2]
[421233864,1777284643481,-780.71088,0.00013425,2]
[421233865,1777284643490,-160.0,0.00013425,2]
[421233866,1777284643499,-644.533796,0.00013425,2]
[421233867,1777284643509,-1129.067593,0.00013425,2]
[421233868,1777284643525,-160.0,0.00013425,2]
[421233869,1777284643539,-401.460671,0.00013425,2]
[421233870,1777284643549,-642.921342,0.00013425,2]
[421233871,1777284643559,-162.698079,0.00013425,2]
[421233872,1777284643568,-13410.58431002,0.00013652,2]
[421233873,1777284643579,-500.0,0.00013698,2]
[421233874,1777284643588,-500.0,0.00013698,2]
[421233875,1777284643598,-500.0,0.00013698,2]
[421233877,1777284643926,-500.0,0.00013698,2]
[421233878,1777284643940,-500.0,0.00013698,2]
[421233879,1777284643950,-500.0,0.00013698,2]
[421233880,1777284643960,-500.0,0.00013698,2]
[421233881,1777284643969,-500.0,0.00013698,2]
[421233882,1777284643979,-500.0,0.00013698,2]
[421233883,1777284643989,-500.0,0.00013698,2]
[421233884,1777284643998,-528.41090034,0.00013698,2]
[421233885,1777284644007,-500.0,0.00013698,2]
[421233886,1777284644017,-516.28680288,0.00013698,2]
[421233887,1777284644026,-500.0,0.00013698,2]
[421233888,1777284644036,-500.0,0.00013698,2]
[421233889,1777284644045,-436.52,0.00013698,2]
[421233890,1777284644055,-370.73391956,0.00013698,2]
[421233891,1777284644064,-500.0,0.00013698,2]
[421233892,1777284644074,-500.0,0.00013698,2]
[421233893,1777284644083,-500.0,0.00013698,2]
[421233894,1777284644092,-500.0,0.00013698,2]
[421233895,1777284644102,-500.0,0.00013698,2]
[421233896,1777284644111,-500.0,0.00013698,2]
[421233897,1777284644120,-500.0,0.00013698,2]
[421233898,1777284644130,-462.265896,0.00013698,2]
[421233899,1777284644140,-500.0,0.00013698,2]
[421233900,1777284644149,-500.0,0.00013698,2]
[421233901,1777284644158,-500.0,0.00013698,2]
[421233902,1777284644168,-500.0,0.00013698,2]
[421233903,1777284644177,-500.0,0.00013698,2]
[421233904,1777284644186,-315.96049226,0.00013698,2]
[421233905,1777284644195,-834.09,0.00013698,2]
[421233906,1777284644204,-834.09,0.00013698,2]
[421233907,1777284644213,-834.09,0.00013698,2]
[421233908,1777284644222,-834.09,0.00013698,2]
[421233909,1777284644231,-834.09,0.00013698,2]
[421233910,1777284644240,-834.09,0.00013698,2]
[421233911,1777284644249,-834.09,0.00013698,2]
[421233912,1777284644258,-834.09,0.00013698,2]
[421233913,1777284644267,-834.09,0.00013698,2]
[421233914,1777284644277,-834.09,0.00013698,2]
[421233915,1777284644287,-834.09,0.00013698,2]
[421233916,1777284644296,-834.09,0.00013698,2]
[421233917,1777284644306,-834.09,0.00013698,2]
[421233918,1777284644316,-834.09,0.00013698,2]
[421233919,1777284644325,-834.09,0.00013698,2]
[421233920,1777284644335,-834.09,0.00013698,2]
[421233921,1777284644345,-834.09,0.00013698,2]
[421233922,1777284644355,-834.09,0.00013698,2]
[421233923,1777284644364,-834.09,0.00013698,2]
[421233924,1777284644374,-834.09,0.00013698,2]
[421233925,1777284644384,-834.09,0.00013698,2]
[421233926,1777284644393,-834.09,0.00013698,2]
[421233927,1777284644403,-834.09,0.00013698,2]
[421233928,1777284644412,-834.10244832,0.00013698,2]
[421233929,1777284644422,-505.11538992,0.00013698,2]
[421233930,1777284644431,-500.0,0.00013698,2]
[421233931,1777284644440,-500.0,0.00013698,2]
[421233932,1777284644449,-500.0,0.00013698,2]
[421233933,1777284644459,-500.0,0.00013698,2]
[421233934,1777284644468,-500.0,0.00013698,2]
[421233935,1777284644478,-500.0,0.00013698,2]
[421233936,1777284644493,-500.0,0.00013698,2]
[421233937,1777284644502,-500.0,0.00013698,2]
[421233938,1777284644512,-500.0,0.00013698,2]
[421233939,1777284644522,-500.0,0.00013698,2]
[421233940,1777284644531,-500.0,0.00013698,2]
[421233941,1777284644540,-500.0,0.00013698,2]
[421233942,1777284644550,-500.0,0.00013698,2]
[421233943,1777284644560,-500.0,0.00013698,2]
[421233944,1777284644569,-500.0,0.00013698,2]
[421233945,1777284644578,-500.0,0.00013698,2]
[421233946,1777284644588,-500.0,0.00013698,2]
[421233947,1777284644598,-500.0,0.00013698,2]
[421233948,1777284644607,-500.0,0.00013698,2]
[421233949,1777284644616,-500.0,0.00013698,2]
[421233950,1777284644626,-621.25,0.00013698,2]
[421233951,1777284644636,-610.47,0.00013698,2]
[421233952,1777284644646,-610.47,0.00013698,2]
[421233953,1777284644656,-610.47,0.00013698,2]
[421233954,1777284644665,-610.47,0.00013698,2]
[421233955,1777284644675,-610.47,0.00013698,2]
[421233956,1777284644685,-610.47,0.00013698,2]
[421233957,1777284644694,-610.47,0.00013698,2]
[421233958,1777284644704,-610.47,0.00013698,2]
[421233959,1777284644713,-610.47,0.00013698,2]
[421233960,1777284644723,-610.47,0.00013698,2]
[421233961,1777284644732,-610.47,0.00013698,2]
[421233962,1777284644742,-610.47,0.00013698,2]
[421233963,1777284644751,-610.47,0.00013698,2]
[421233964,1777284644761,-610.47,0.00013698,2]
[421233965,1777284644771,-610.47,0.00013698,2]
[421233966,1777284644780,-610.47,0.00013698,2]
[421233967,1777284644790,-610.47,0.00013698,2]
[421233968,1777284644799,-610.47,0.00013698,2]
[421233969,1777284644809,-610.47,0.00013698,2]
[421233970,1777284644818,-610.47,0.00013698,2]
[421233971,1777284644827,-610.47,0.00013698,2]
[421233972,1777284644837,-610.47,0.00013698,2]
[421233973,1777284644847,-610.47,0.00013698,2]
[421233974,1777284644856,-610.65036374,0.00013698,2]
[421233975,1777284644866,-500.0,0.00013698,2]
[421233976,1777284644875,-500.0,0.00013698,2]
[421233977,1777284644885,-500.0,0.00013698,2]
[421233978,1777284644895,-500.0,0.00013698,2]
[421233979,1777284644904,-500.0,0.00013698,2]
[421233980,1777284644914,-500.0,0.00013698,2]
[421233981,1777284644923,-500.0,0.00013698,2]
[421233982,1777284644932,-500.0,0.00013698,2]
[421233983,1777284644942,-500.0,0.00013698,2]
[421233984,1777284644952,-500.0,0.00013698,2]
[421233985,1777284644961,-500.0,0.00013698,2]
[421233986,1777284644971,-500.0,0.00013698,2]
[421233987,1777284644981,-500.0,0.00013698,2]
[421233988,1777284644990,-511.30741414,0.00013698,2]
[421233989,1777284645000,-500.0,0.00013698,2]
[421233990,1777284645009,-500.0,0.00013698,2]
[421233991,1777284645019,-500.0,0.00013698,2]
[421233992,1777284645028,-506.61,0.00013698,2]
[421233993,1777284645038,-500.0,0.00013698,2]
[421233994,1777284645048,-500.0,0.00013698,2]
[421233995,1777284645057,-500.0,0.00013698,2]
[421233996,1777284645067,-500.0,0.00013698,2]
[421233997,1777284645076,-500.0,0.00013698,2]
[421233998,1777284645086,-500.0,0.00013698,2]
[421233999,1777284645096,-500.0,0.00013698,2]
[421234000,1777284645106,-500.0,0.00013698,2]
[421234001,1777284645115,-500.0,0.00013698,2]
[421234002,1777284645125,-500.0,0.00013698,2]
[421234003,1777284645135,-500.0,0.00013698,2]
[421234004,1777284645144,-500.0,0.00013698,2]
[421234005,1777284645154,-500.0,0.00013698,2]
[421234006,1777284645164,-500.0,0.00013698,2]
[421234007,1777284645175,-500.0,0.00013698,2]
[421234008,1777284645184,-500.0,0.00013698,2]
[421234009,1777284645193,-500.0,0.00013698,2]
[421234010,1777284645203,-500.0,0.00013698,2]
[421234011,1777284645212,-500.0,0.00013698,2]
[421234012,1777284645222,-500.0,0.00013698,2]
[421234013,1777284645231,-500.0,0.00013698,2]
[421234014,1777284645240,-500.0,0.00013698,2]
[421234015,1777284645250,-556.2,0.00013698,2]
[421234016,1777284645260,-500.0,0.00013698,2]
[421234017,1777284645269,-500.0,0.00013698,2]
[421234018,1777284645279,-500.0,0.00013698,2]
[421234019,1777284645289,-500.0,0.00013698,2]
[421234020,1777284645298,-500.0,0.00013698,2]
[421234021,1777284645307,-500.0,0.00013698,2]
[421234022,1777284645317,-500.0,0.00013698,2]
[421234023,1777284645326,-489.28,0.00013698,2]
[421234024,1777284645336,-500.0,0.00013698,2]
[421234025,1777284645345,-503.21994214,0.00013698,2]
[421234026,1777284645355,-500.0,0.00013698,2]
[421234027,1777284645364,-500.0,0.00013698,2]
[421234028,1777284645373,-500.0,0.00013698,2]
[421234029,1777284645383,-500.0,0.00013698,2]
[421234030,1777284645392,-500.0,0.00013698,2]
[421234031,1777284645402,-501.52976624,0.00013698,2]
[421234032,1777284645412,-500.0,0.00013699,2]
[421234033,1777284645421,-151.0,0.00013699,2]
[421234034,1777284645431,-151.0,0.00013699,2]
[421234035,1777284645441,-151.0,0.00013699,2]
[421234036,1777284645450,-151.0,0.00013699,2]
[421234037,1777284645460,-151.0,0.00013699,2]
[421234038,1777284645469,-152.039986,0.00013699,2]
[421234039,1777284645479,-151.0,0.00013699,2]
[421234040,1777284645489,-151.0,0.00013699,2]
[421234041,1777284645498,-151.0,0.00013699,2]
[421234042,1777284645508,-151.0,0.00013699,2]
[421234043,1777284645518,-151.0,0.00013699,2]
[421234044,1777284645527,-151.0,0.00013699,2]
[421234045,1777284645537,-151.0,0.00013699,2]
[421234046,1777284645547,-151.0,0.00013699,2]
[421234047,1777284645561,-151.0,0.00013699,2]
[421234048,1777284645571,-290.293923,0.00013699,2]
[421234049,1777284645582,-256.204952,0.00013699,2]
[421234050,1777284645591,-220.97,0.00013699,2]
[421234051,1777284645601,-184.14,0.00013699,2]
[421234052,1777284645611,-153.45,0.00013699,2]
[421234053,1777284645621,-767.3,0.00013699,2]
[421234054,1777284645630,-156.839378,0.00013699,2]
[421234055,1777284645639,-156.839378,0.00013699,2]
[421234056,1777284645649,-156.839378,0.00013699,2]
[421234057,1777284645659,-156.839378,0.00013699,2]
[421234058,1777284645669,-156.839378,0.00013699,2]
[421234059,1777284645679,-156.839378,0.00013699,2]
[421234060,1777284645688,-156.839378,0.00013699,2]
[421234061,1777284645698,-156.839378,0.00013699,2]
[421234062,1777284645708,-156.839378,0.00013699,2]
[421234063,1777284645718,-156.839378,0.00013699,2]
[421234064,1777284645727,-156.839378,0.00013699,2]
[421234065,1777284645737,-156.839378,0.00013699,2]
[421234066,1777284645747,-156.839378,0.00013699,2]
[421234067,1777284645757,-156.839378,0.00013699,2]
[421234068,1777284645766,-156.839378,0.00013699,2]
[421234069,1777284645776,-156.839378,0.00013699,2]
[421234070,1777284645786,-156.839378,0.00013699,2]
[421234071,1777284645795,-156.839378,0.00013699,2]
[421234072,1777284645805,-156.839378,0.00013699,2]
[421234073,1777284645814,-156.839372,0.00013699,2]
[421234074,1777284645824,-150.99,0.00013699,2]
[421234075,1777284645834,-3562.76,0.00013699,2]
[421234076,1777284645844,-299.99,0.00013699,2]
[421234077,1777284645854,-5419.65,0.00013699,2]
[421234078,1777284645863,-999.99,0.00013699,2]
[421234079,1777284645873,-24999.99,0.00013699,2]
[421234080,1777284645883,-297.85631838,0.00013699,2]
[421234081,1777284645892,-304.97730224,0.00013699,2]
[421234082,1777284645902,-520.2532179,0.00013699,2]
[421234083,1777284645911,-500.0,0.00013699,2]
[421234084,1777284645921,-592.96212013,0.00013699,2]
[421234085,1777284645931,-500.0,0.00013835,2]
[421234086,1777284645940,-500.0,0.00013835,2]
[421234087,1777284645950,-500.0,0.00013835,2]
[421234088,1777284645960,-600.0,0.00013835,2]
[421234089,1777284645970,-25000.0,0.00014,2]
[421234090,1777284645980,-1016.841941,0.00014096,7]
[421234091,1777284645990,-741.103682,0.00014096,2]
[421234092,1777284645999,-641.393782,0.00014096,7]